[Event "44th Chess Olympiad Women 2022"]
[Site "Chennai"]
[Date "2022.08.09"]
[Round "11.55"]
[White "James, Shemilah"]
[Black "Grishina, Alexandra"]
[Result "0-1"]
[ECO "B13"]
[WhiteElo "1590"]
[BlackElo "2012"]
[Annotator "TA"]
[PlyCount "104"]
[EventDate "2022.07.29"]
[EventType "team-tourn"]
[EventCountry "IND"]
[SourceTitle "playchess.com"]
[Source "ChessBase"]
[SourceQuality "1"]
[WhiteTeam "TTO"]
[BlackTeam "Lebanon"]
[BlackTeamCountry "LBN"]
[TimeControl "40/5400+30:1800+30"]

{[%evp 16,104,23,10,11,0,11,0,0,-19,0,-6,44,35,42,35,33,36,47,37,45,0,0,-46,-41,-59,-30,-109,-100,-153,-106,-107,-55,-55,-32,-33,-41,-18,0,0,106,108,104,89,87,0,0,0,0,-435,-432,-446,-437,-444,-438,-404,-458,-439,-421,-441,-405,-452,-449,-508,-470,-657,-645,-624,-618,-710,-675,-29958,-12834,-5102,-1309,-1450,-1370,-1104,-1019,-29947,-5616,-29977,-29969,-29981,-29982,-29981,-29982,-29980,-29981,-29978,-29971]} 1. e4 {[%emt 0:00:15]} c6 {[%emt 0:00:29]} 2. d4 {[%emt 0:00:12]} d5 {[%emt 0:00:12]} 3. exd5 {[%emt 0:00:19]} cxd5 {[%emt 0:00:12]} 4. Bd3 {[%emt 0:00:13]} Nc6 {[%emt 0:01:29]} 5. c3 {[%emt 0:00:11]} Nf6 {[%emt 0:01:35]} 6. Bf4 {[%emt 0:02:14]} Bg4 {[%emt 0:01:53]} 7. Nf3 {[%emt 0:03:15]} e6 {[%emt 0:01:51]} 8. Nbd2 {[%emt 0:02:04]} Bd6 {[%emt 0:03:33]} 9. Bg3 {[%emt 0:02:56]} Bxg3 {[%emt 0:05:34] B13: Caro-Kann: Exchange Variation and Panov-Botvinnik Attack.} 10. hxg3 {[%emt 0:00:55]} Qd6 {[%emt 0:03:21]} 11. Qb3 {[%emt 0:08:44]} O-O {[%emt 0:10:50] The position is equal.} 12. Qc2 {[%emt 0:06:18][%cal Rd3h7] [#]} h6 $146 {[%emt 0:01:32]} ({Predecessor:} 12... g6 13. O-O Bxf3 14. Nxf3 Rab8 15. Rfe1 b5 16. b4 Rfc8 17. a4 Nxb4 18. Qd2 Nxd3 19. Qxd3 {0-1 (39) Nolte,O (1386)-Mundhenk,J (1386) Neumuenster 2008}) 13. O-O {[%emt 0:04:38]} e5 {[%emt 0:04:04]} (13... Rac8 $11) 14. dxe5 $14 {[%emt 0:02:03]} Nxe5 {[%emt 0:00:06]} 15. Nxe5 {[%emt 0:01:32]} Qxe5 {[%emt 0:00:04]} 16. Rfe1 {[%emt 0:03:28]} Qh5 {[%emt 0:02:03]} 17. f3 {[%emt 0:05:50]} Be6 {[%emt 0:02:59][%cal Od5d4]} 18. g4 {[%emt 0:05:05]} Qg5 {[%emt 0:05:47]} (18... Bxg4 $2 19. fxg4 Qxg4 20. Re7 $18) 19. Nb3 {[%emt 0:05:12]} (19. Nf1 $11 {should be considered.}) 19... h5 $15 {[%emt 0:04:53]} 20. gxh5 {[%emt 0:07:32]} Nxh5 {[%emt 0:01:24] ...Nf4 is the strong threat.} 21. Nd4 {[%emt 0:15:30]} (21. Bf1 $11 {keeps the balance.}) 21... Nf4 $17 {[%emt 0:03:16]} 22. Bh7+ {[%emt 0:04:48]} Kh8 {[%emt 0:00:49]} 23. Bf5 {[%emt 0:00:09][%cal Rf5e6]} Bxf5 {[%emt 0:09:33]} (23... Rae8 $1 $17 24. Nxe6 fxe6) 24. Nxf5 $15 {[%emt 0:00:29][%cal Bd4f5,Bf5e3,Be3d5][%mdl 32]} g6 {[%emt 0:01:12]} (24... Nxg2 $5 25. Qxg2 Qxf5 $15) 25. Ne3 {[%emt 0:05:05]} Kg7 {[%emt 0:02:04] Strongly threatening ...Rae8.} 26. Qd2 $1 {[%emt 0:03:42]} Rh8 {[%emt 0:01:12]} 27. Qd4+ {[%emt 0:01:08]} Qf6 {[%emt 0:22:41]} (27... f6 $11 28. Ng4 Rae8 29. Qxa7 Rh1+ 30. Kxh1 Rxe1+ 31. Rxe1 Qh4+ 32. Kg1 Qxe1+ 33. Kh2 Qh4+ 34. Kg1 Qe1+ 35. Kh2 Qh4+ 36. Kg1 Qe1+) 28. Qxf6+ $16 {[%emt 0:01:11]} Kxf6 {[%emt 0:00:04]} 29. g3 {[%emt 0:02:24]} Nd3 {[%emt 0:01:28][%csl LRb2,LRe1]} 30. Nxd5+ {[%emt 0:01:13]} (30. Re2 $1 $16) 30... Kg7 $11 {[%emt 0:00:20]} 31. Re2 {[%emt 0:01:22]} Rh3 {[%emt 0:00:54] And now ...Rah8 would win.} 32. Rg2 $2 {[%emt 0:02:41][%mdl 8192] White is on the road to losing.} (32. Rd1 $1 $11 {and White is okay.} Rxg3+ 33. Kf1) 32... Rah8 $19 {[%emt 0:00:11][%csl Gh8][%cal Rh3h1]} 33. Kf1 {[%emt 0:00:35]} Rh1+ {[%emt 0:00:36][%mdl 64] Skewer} 34. Rg1 {[%emt 0:00:10]} R8h2 {[%emt 0:00:13][%csl Gd3][%cal Rh2f2]} 35. Rxh1 {[%emt 0:01:14]} Rxh1+ {[%emt 0:00:16]} 36. Ke2 {[%emt 0:00:09]} Rxa1 {[%emt 0:00:08]} 37. Kxd3 {[%emt 0:00:09]} Rxa2 {[%emt 0:00:10][%mdl 4096] Endgame KR-KN} 38. b4 {[%emt 0:00:38]} f5 {[%emt 0:01:45]} 39. Ke3 {[%emt 0:02:02]} Rg2 {[%emt 0:01:19]} 40. Kf4 {[%emt 0:00:51]} Rd2 {[%emt 0:03:31]} 41. Ke5 {[%emt 0:08:57]} Rd3 {[%emt 0:02:01]} 42. g4 {[%emt 0:03:15]} Rxf3 {[%emt 0:01:25]} 43. gxf5 {[%emt 0:00:49]} Rxf5+ {[%emt 0:00:30]} 44. Ke4 {[%emt 0:00:37] [#]} Rf1 {[%emt 0:07:55]} (44... Rxd5 $142 $1 45. Kxd5 Kf6) 45. c4 {[%emt 0:01:48]} Kf7 {[%emt 0:04:44]} 46. Ke5 {[%emt 0:02:39]} g5 {[%emt 0:02:24][%cal Bg6g5,Bg5g4,Bg4g3][%mdl 32] White must now prevent ...Rf2.} 47. Kd6 {[%emt 0:02:30]} Re1 {[%emt 0:02:18]} (47... g4 $142 48. Ne3 {[#]} g3 $1 49. Ng2 Rf2 50. Nh4 g2 51. Nxg2 Rxg2 52. Kc5 Ke6 53. b5 Rb2 54. Kd4 Rb3 55. Ke4 a5 56. bxa6 bxa6 57. c5 a5 58. Kd4 a4 59. c6 a3 60. c7 Kd7 61. Kc4 Rg3 62. Kd4 a2 63. Ke5 a1=Q+ 64. Kf4 Qe1 65. c8=Q+ Kxc8 66. Kf5 Kc7 67. Kf6 Kd6 68. Kf7 Qe7#) 48. Kc7 {[%emt 0:01:47]} g4 {[%emt 0:03:42] Black mates.} 49. Kxb7 {[%emt 0:03:43]} g3 {[%emt 0:00:41]} 50. Nf4 {[%emt 0:02:03]} Re4 {[%emt 0:00:18][%csl LRc4,LRf4]} 51. Ng2 {[%emt 0:00:30]} Rxc4 {[%emt 0:00:10]} 52. b5 {[%emt 0:00:58]} Ra4 {[%emt 0:00:13] Weighted Error Value: White=0.85/Black=0.43} 0-1

[Event "44th Chess Olympiad Women 2022"]
[Site "Chennai"]
[Date "2022.08.09"]
[Round "11.55"]
[White "Darweeche, Roaa"]
[Black "Mohammed, Celine Angelina"]
[Result "1/2-1/2"]
[ECO "D30"]
[WhiteElo "1548"]
[BlackElo "1100"]
[Annotator "NA RC COMBH"]
[PlyCount "85"]
[EventDate "2022.07.29"]
[EventType "team-tourn"]
[EventCountry "IND"]
[SourceTitle "playchess.com"]
[Source "ChessBase"]
[SourceQuality "1"]
[WhiteTeam "Lebanon"]
[BlackTeam "TTO"]
[WhiteTeamCountry "LBN"]
[TimeControl "40/5400+30:1800+30"]

1. Nf3 {[%emt 0:00:19]} d5 {[%emt 0:00:18]} 2. c4 {[%emt 0:00:06]} c6 {[%emt 0:00:57]} 3. e3 {[%emt 0:01:02]} Nf6 {[%emt 0:00:14]} 4. d4 {[%emt 0:00:15]} e6 {[%emt 0:01:07]} 5. c5 {[%emt 0:01:24]} b6 {[%emt 0:01:01]} 6. b4 {[%emt 0:01:11]} Be7 {[%emt 0:02:26]} 7. Nc3 {[%emt 0:02:19]} O-O {[%emt 0:02:48]} 8. Bd3 {[%emt 0:01:41]} Nbd7 {[%emt 0:02:02]} 9. O-O {[%emt 0:06:17]} Re8 {[%emt 0:01:19]} 10. e4 {[%emt 0:10:14]} dxe4 {[%emt 0:01:59]} 11. Nxe4 {[%emt 0:00:17]} Nxe4 {[%emt 0:00:07]} 12. Bxe4 {[%emt 0:00:06]} Bb7 {[%emt 0:00:38]} 13. Bf4 {[%emt 0:02:53]} Nf6 {[%emt 0:02:52]} 14. Bc2 {[%emt 0:03:36]} Nd5 {[%emt 0:00:27]} 15. Bd2 {[%emt 0:00:22]} bxc5 {[%emt 0:01:21]} 16. dxc5 {[%emt 0:02:50]} Bf6 {[%emt 0:01:46]} 17. Rb1 {[%emt 0:00:17]} Ba6 {[%emt 0:01:24]} 18. Re1 {[%emt 0:00:26]} Bc4 {[%emt 0:05:29]} 19. Bb3 {[%emt 0:00:22]} Bxb3 {[%emt 0:00:22]} 20. Rxb3 {[%emt 0:00:11]} Qd7 {[%emt 0:03:39]} 21. Bc3 {[%emt 0:09:50]} Bxc3 {[%emt 0:01:26]} 22. Rxc3 {[%emt 0:00:02]} Qb7 {[%emt 0:01:02]} 23. Rb3 {[%emt 0:00:44]} Rad8 {[%emt 0:00:31]} 24. Qc2 {[%emt 0:07:24]} h6 {[%emt 0:03:13]} 25. a3 {[%emt 0:00:40]} Qe7 {[%emt 0:01:58]} 26. Ne5 {[%emt 0:09:45]} Rc8 {[%emt 0:00:00]} 27. Nc4 {[%emt 0:00:33]} Rc7 {[%emt 0:04:44]} 28. Nd6 {[%emt 0:00:30]} Rd8 {[%emt 0:00:14]} 29. Qe4 {[%emt 0:02:19]} Nf6 {[%emt 0:03:11]} 30. Qe5 {[%emt 0:01:26]} Ne8 {[%emt 0:01:17]} 31. Rg3 {[%emt 0:06:41]} Qf6 {[%emt 0:02:21]} 32. Qxf6 {[%emt 0:02:44]} Nxf6 {[%emt 0:00:07]} 33. h3 {[%emt 0:00:43]} Ne8 {[%emt 0:01:06]} 34. Rd3 {[%emt 0:00:47]} Nxd6 {[%emt 0:00:29]} 35. cxd6 {[%emt 0:00:15]} Rcd7 {[%emt 0:00:16]} 36. Red1 {[%emt 0:01:33]} Kf8 {[%emt 0:01:22]} 37. f4 {[%emt 0:00:00]} f6 {[%emt 0:00:36]} 38. Kf2 {[%emt 0:00:00]} Kf7 {[%emt 0:00:25]} 39. Kf3 {[%emt 0:02:38]} g5 {[%emt 0:02:02]} 40. g3 {[%emt 0:01:51]} f5 {[%emt 0:01:51]} 41. a4 {[%emt 0:32:40]} Kf6 {[%emt 0:30:38]} 42. b5 {[%emt 0:01:59]} cxb5 {[%emt 0:00:19]} 43. axb5 {[%emt 0:00:04]} 1/2-1/2

[Event "44th Chess Olympiad Women 2022"]
[Site "Chennai"]
[Date "2022.08.09"]
[Round "11.55"]
[White "Martin, Kayla"]
[Black "Fawaz, Nadia"]
[Result "1/2-1/2"]
[ECO "C50"]
[WhiteElo "1138"]
[BlackElo "1214"]
[Annotator "NA RC COMBH"]
[PlyCount "52"]
[EventDate "2022.07.29"]
[EventType "team-tourn"]
[EventCountry "IND"]
[SourceTitle "playchess.com"]
[Source "ChessBase"]
[SourceQuality "1"]
[WhiteTeam "TTO"]
[BlackTeam "Lebanon"]
[BlackTeamCountry "LBN"]
[TimeControl "40/5400+30:1800+30"]

1. e4 {[%emt 0:00:31]} e5 {[%emt 0:00:30]} 2. Nf3 {[%emt 0:00:10]} Nc6 {[%emt 0:00:32]} 3. Bc4 {[%emt 0:00:20]} Bc5 {[%emt 0:00:35]} 4. Nc3 {[%emt 0:00:40]} Nf6 {[%emt 0:01:23]} 5. O-O {[%emt 0:00:29]} O-O {[%emt 0:01:01]} 6. d3 {[%emt 0:00:51]} h6 {[%emt 0:01:52]} 7. Re1 {[%emt 0:03:02]} d6 {[%emt 0:02:09]} 8. h3 {[%emt 0:01:13]} Na5 {[%emt 0:07:18]} 9. Bd5 {[%emt 0:05:30]} c6 {[%emt 0:01:38]} 10. Bc4 {[%emt 0:07:16]} Nxc4 {[%emt 0:00:11]} 11. dxc4 {[%emt 0:00:06]} Be6 {[%emt 0:01:37]} 12. a3 {[%emt 0:02:01]} a5 {[%emt 0:08:11]} 13. b3 {[%emt 0:07:24]} Re8 {[%emt 0:10:30]} 14. Be3 {[%emt 0:13:20]} Bxe3 {[%emt 0:02:12]} 15. Rxe3 {[%emt 0:00:27]} Qc7 {[%emt 0:14:01]} 16. Qd2 {[%emt 0:05:54]} Rad8 {[%emt 0:03:32]} 17. Rd1 {[%emt 0:01:56]} Rd7 {[%emt 0:18:29]} 18. Qe1 {[%emt 0:05:03]} Nh7 {[%emt 0:04:34]} 19. Re2 {[%emt 0:16:53]} Nf6 {[%emt 0:03:18]} 20. Red2 {[%emt 0:06:50]} Red8 {[%emt 0:01:34]} 21. Qe3 {[%emt 0:04:20]} Kh8 {[%emt 0:04:47]} 22. a4 {[%emt 0:03:31]} Kg8 {[%emt 0:03:03]} 23. Kf1 {[%emt 0:00:19]} Kh8 {[%emt 0:00:14]} 24. Kg1 {[%emt 0:00:08]} Kg8 {[%emt 0:00:06]} 25. Kf1 {[%emt 0:00:09]} Kh8 {[%emt 0:00:12]} 26. Kg1 {[%emt 0:00:08]} Kg8 {[%emt 0:00:06]} 1/2-1/2

[Event "44th Chess Olympiad Women 2022"]
[Site "Chennai"]
[Date "2022.08.09"]
[Round "11.56"]
[White "Markidou, Christianna"]
[Black "Lohani, Sujana"]
[Result "0-1"]
[ECO "B06"]
[WhiteElo "1701"]
[BlackElo "1697"]
[Annotator "NA RC COMBH"]
[PlyCount "46"]
[EventDate "2022.07.29"]
[EventType "team-tourn"]
[EventCountry "IND"]
[SourceTitle "playchess.com"]
[Source "ChessBase"]
[SourceQuality "1"]
[WhiteTeam "Cyprus"]
[BlackTeam "Nepal"]
[WhiteTeamCountry "CYP"]
[BlackTeamCountry "NEP"]
[TimeControl "40/5400+30:1800+30"]

1. e4 {[%emt 0:00:10]} d6 {[%emt 0:00:11]} 2. d4 {[%emt 0:00:55]} g6 {[%emt 0:01:16]} 3. b3 {[%emt 0:02:38]} Bg7 {[%emt 0:00:16]} 4. Bb2 {[%emt 0:00:07]} c5 {[%emt 0:01:59]} 5. c3 {[%emt 0:01:42]} Qb6 {[%emt 0:05:01]} 6. Nf3 {[%emt 0:01:20]} Nf6 {[%emt 0:01:47]} 7. Bd3 {[%emt 0:01:29]} O-O {[%emt 0:00:48]} 8. O-O {[%emt 0:00:18]} Bg4 {[%emt 0:05:44]} 9. h3 {[%emt 0:00:14]} Bxf3 {[%emt 0:00:41]} 10. Qxf3 {[%emt 0:00:11]} Nc6 {[%emt 0:00:16]} 11. Qe3 {[%emt 0:06:04]} cxd4 {[%emt 0:03:30]} 12. cxd4 {[%emt 0:00:54]} Nd7 {[%emt 0:01:00]} 13. Nd2 {[%emt 0:04:03]} Bxd4 {[%emt 0:01:25]} 14. Bxd4 {[%emt 0:00:41]} Qxd4 {[%emt 0:00:24]} 15. Qxd4 {[%emt 0:00:27]} Nxd4 {[%emt 0:00:07]} 16. Rfc1 {[%emt 0:00:16]} Rac8 {[%emt 0:03:11]} 17. f4 {[%emt 0:01:24]} Nc5 {[%emt 0:02:27]} 18. Bf1 {[%emt 0:01:38]} Rc6 {[%emt 0:15:51]} 19. Kf2 {[%emt 0:00:53]} Rfc8 {[%emt 0:00:17]} 20. Ke3 {[%emt 0:00:24]} Nce6 {[%emt 0:10:53]} 21. Rxc6 {[%emt 0:05:35]} Rxc6 {[%emt 0:01:40]} 22. Kd3 {[%emt 0:00:34]} Nc2 {[%emt 0:00:44]} 23. Rb1 {[%emt 0:02:12]} Nxf4# {[%emt 0:00:31]} 0-1

[Event "44th Chess Olympiad Women 2022"]
[Site "Chennai"]
[Date "2022.08.09"]
[Round "11.56"]
[White "Kapali, Binita"]
[Black "Ioannides Liu, Alice"]
[Result "0-1"]
[ECO "C50"]
[WhiteElo "1511"]
[BlackElo "1292"]
[Annotator "NA RC COMBH"]
[PlyCount "114"]
[EventDate "2022.07.29"]
[EventType "team-tourn"]
[EventCountry "IND"]
[SourceTitle "playchess.com"]
[Source "ChessBase"]
[SourceQuality "1"]
[WhiteTeam "Nepal"]
[BlackTeam "Cyprus"]
[WhiteTeamCountry "NEP"]
[BlackTeamCountry "CYP"]
[TimeControl "40/5400+30:1800+30"]

1. e4 {[%emt 0:00:03]} e5 {[%emt 0:00:03]} 2. Nf3 {[%emt 0:00:06]} Nc6 {[%emt 0:00:05]} 3. Nc3 {[%emt 0:00:19]} Nf6 {[%emt 0:00:09]} 4. Bc4 {[%emt 0:00:19]} Bc5 {[%emt 0:00:36]} 5. O-O {[%emt 0:00:22]} d6 {[%emt 0:00:13]} 6. h3 {[%emt 0:00:30]} O-O {[%emt 0:00:18]} 7. d3 {[%emt 0:02:07]} h6 {[%emt 0:00:14]} 8. Na4 {[%emt 0:00:19]} Bb6 {[%emt 0:00:11]} 9. Nxb6 {[%emt 0:00:13]} axb6 {[%emt 0:00:03]} 10. a3 {[%emt 0:00:27]} d5 {[%emt 0:13:38]} 11. exd5 {[%emt 0:01:02]} Nxd5 {[%emt 0:00:06]} 12. Bd2 {[%emt 0:01:19]} Re8 {[%emt 0:09:20]} 13. Re1 {[%emt 0:02:33]} Qd6 {[%emt 0:08:54]} 14. Nh2 {[%emt 0:09:11]} Nf6 {[%emt 0:06:45]} 15. Bc3 {[%emt 0:04:33]} Be6 {[%emt 0:03:38]} 16. Ba2 {[%emt 0:03:13]} Bxa2 {[%emt 0:00:34]} 17. Rxa2 {[%emt 0:00:05]} Nd5 {[%emt 0:07:59]} 18. Bd2 {[%emt 0:01:25]} Re6 {[%emt 0:07:10]} 19. Ra1 {[%emt 0:01:48]} Rf6 {[%emt 0:07:27]} 20. Ng4 {[%emt 0:02:14]} Rg6 {[%emt 0:00:42]} 21. c3 {[%emt 0:07:10]} Qe6 {[%emt 0:03:42]} 22. Qf3 {[%emt 0:04:09]} Qd6 {[%emt 0:06:06]} 23. Qe4 {[%emt 0:07:20]} Re6 {[%emt 0:02:36]} 24. Rad1 {[%emt 0:02:18]} Rd8 {[%emt 0:02:04]} 25. Bc1 {[%emt 0:02:01]} Nf6 {[%emt 0:02:54]} 26. Nxf6+ {[%emt 0:02:31]} Rxf6 {[%emt 0:00:05]} 27. Be3 {[%emt 0:05:51]} Qd5 {[%emt 0:01:27]} 28. Rf1 {[%emt 0:04:47]} Rfd6 {[%emt 0:00:47]} 29. Qxd5 {[%emt 0:15:28]} Rxd5 {[%emt 0:00:05]} 30. d4 {[%emt 0:01:30]} exd4 {[%emt 0:00:20]} 31. cxd4 {[%emt 0:00:11]} Nxd4 {[%emt 0:00:12]} 32. Bxd4 {[%emt 0:04:23]} Rxd4 {[%emt 0:00:06]} 33. Rxd4 {[%emt 0:00:07]} Rxd4 {[%emt 0:00:06]} 34. Rc1 {[%emt 0:00:36]} c6 {[%emt 0:04:33]} 35. Kf1 {[%emt 0:00:11]} Rd2 {[%emt 0:00:49]} 36. b4 {[%emt 0:00:36]} Ra2 {[%emt 0:00:56]} 37. Rc3 {[%emt 0:00:13]} Kf8 {[%emt 0:00:19]} 38. Re3 {[%emt 0:00:20]} Rb2 {[%emt 0:04:17]} 39. Re2 {[%emt 0:01:12]} Rb1+ {[%emt 0:00:56]} 40. Re1 {[%emt 0:00:11]} Rxe1+ {[%emt 0:00:04]} 41. Kxe1 {[%emt 0:30:13]} Ke7 {[%emt 0:34:04]} 42. Kd2 {[%emt 0:01:07]} Kd6 {[%emt 0:05:59]} 43. Kd3 {[%emt 0:01:44]} Kd5 {[%emt 0:00:10]} 44. a4 {[%emt 0:01:16]} c5 {[%emt 0:00:00]} 45. b5 {[%emt 0:00:00]} c4+ {[%emt 0:00:00]} 46. Kc3 {[%emt 0:00:00]} Kc5 {[%emt 0:00:00]} 47. f3 {[%emt 0:00:00]} g5 {[%emt 0:00:00]} 48. g3 {[%emt 0:00:00]} f6 {[%emt 0:00:00]} 49. g4 {[%emt 0:00:00]} Kd5 {[%emt 0:00:00]} 50. Kb4 {[%emt 0:00:00]} Kd4 {[%emt 0:00:00]} 51. a5 {[%emt 0:00:00]} bxa5+ {[%emt 0:00:00]} 52. Kxa5 {[%emt 0:00:00]} c3 {[%emt 0:00:00]} 53. Kb6 {[%emt 0:00:00]} c2 {[%emt 0:00:00]} 54. Kxb7 {[%emt 0:00:00]} c1=Q {[%emt 0:00:00]} 55. b6 {[%emt 0:00:00]} Qc5 {[%emt 0:00:00]} 56. Ka7 {[%emt 0:00:00]} Qa5+ {[%emt 0:00:00]} 57. Kb7 {[%emt 0:00:00]} Kc5 {[%emt 0:00:00]} 0-1

[Event "44th Chess Olympiad Women 2022"]
[Site "Chennai"]
[Date "2022.08.09"]
[Round "11.56"]
[White "Neupane, Anisha"]
[Black "Sokolova, Victoria"]
[Result "1/2-1/2"]
[ECO "C45"]
[WhiteElo "1488"]
[BlackElo "1193"]
[Annotator "NA RC COMBH"]
[PlyCount "130"]
[EventDate "2022.07.29"]
[EventType "team-tourn"]
[EventCountry "IND"]
[SourceTitle "playchess.com"]
[Source "ChessBase"]
[SourceQuality "1"]
[WhiteTeam "Nepal"]
[BlackTeam "Cyprus"]
[WhiteTeamCountry "NEP"]
[BlackTeamCountry "CYP"]
[TimeControl "40/5400+30:1800+30"]

1. e4 {[%emt 0:00:04]} e5 {[%emt 0:00:05]} 2. Nf3 {[%emt 0:00:13]} Nc6 {[%emt 0:00:09]} 3. d4 {[%emt 0:00:13]} exd4 {[%emt 0:00:22]} 4. Nxd4 {[%emt 0:00:12]} Qh4 {[%emt 0:01:48]} 5. Nc3 {[%emt 0:12:58]} Bb4 {[%emt 0:00:38]} 6. Ndb5 {[%emt 0:13:47]} Qxe4+ {[%emt 0:02:28]} 7. Qe2 {[%emt 0:05:30]} Qxe2+ {[%emt 0:00:51]} 8. Bxe2 {[%emt 0:00:20]} Ba5 {[%emt 0:00:28]} 9. Bf4 {[%emt 0:00:33]} d6 {[%emt 0:00:28]} 10. O-O-O {[%emt 0:01:06]} Be6 {[%emt 0:00:51]} 11. a3 {[%emt 0:04:47]} a6 {[%emt 0:00:16]} 12. Nd4 {[%emt 0:00:56]} Nxd4 {[%emt 0:00:41]} 13. Rxd4 {[%emt 0:00:20]} Bxc3 {[%emt 0:00:04]} 14. bxc3 {[%emt 0:00:08]} Ne7 {[%emt 0:00:39]} 15. Bf3 {[%emt 0:01:32]} Nc6 {[%emt 0:00:57]} 16. Rdd1 {[%emt 0:01:39]} O-O {[%emt 0:02:54]} 17. Rhe1 {[%emt 0:02:17]} Rfe8 {[%emt 0:01:17]} 18. Kd2 {[%emt 0:02:02]} Bd7 {[%emt 0:03:47]} 19. Rb1 {[%emt 0:01:55]} b6 {[%emt 0:02:15]} 20. h3 {[%emt 0:03:53]} Rad8 {[%emt 0:02:27]} 21. Be2 {[%emt 0:02:06]} a5 {[%emt 0:00:49]} 22. Bb5 {[%emt 0:00:11]} Ne5 {[%emt 0:00:21]} 23. c4 {[%emt 0:02:28]} c6 {[%emt 0:01:16]} 24. Ba6 {[%emt 0:00:38]} Rb8 {[%emt 0:00:00]} 25. Be3 {[%emt 0:00:44]} b5 {[%emt 0:00:48]} 26. cxb5 {[%emt 0:02:14]} Nc4+ {[%emt 0:00:14]} 27. Kd3 {[%emt 0:04:05]} Nxe3 {[%emt 0:00:14]} 28. Rxe3 {[%emt 0:00:31]} Rxe3+ {[%emt 0:00:11]} 29. Kxe3 {[%emt 0:00:27]} cxb5 {[%emt 0:00:24]} 30. c4 {[%emt 0:00:55]} Re8+ {[%emt 0:00:30]} 31. Kd2 {[%emt 0:00:23]} bxc4 {[%emt 0:01:19]} 32. Bxc4 {[%emt 0:00:14]} g6 {[%emt 0:01:54]} 33. Rb6 {[%emt 0:00:12]} Be6 {[%emt 0:03:11]} 34. Bb5 {[%emt 0:00:22]} Ra8 {[%emt 0:02:40]} 35. Rxd6 {[%emt 0:00:54]} Kf8 {[%emt 0:00:31]} 36. Ra6 {[%emt 0:00:22]} Rxa6 {[%emt 0:00:12]} 37. Bxa6 {[%emt 0:00:12]} Ke7 {[%emt 0:00:03]} 38. Kc3 {[%emt 0:00:40]} Kd6 {[%emt 0:00:28]} 39. Kd4 {[%emt 0:00:21]} Bb3 {[%emt 0:00:38]} 40. Bc4 {[%emt 0:00:38]} Bxc4 {[%emt 0:01:27]} 41. Kxc4 {[%emt 0:30:07]} Kc6 {[%emt 0:30:06]} 42. a4 {[%emt 0:00:23]} g5 {[%emt 0:06:19]} 43. g3 {[%emt 0:01:06]} f5 {[%emt 0:01:57]} 44. f3 {[%emt 0:00:51]} h5 {[%emt 0:01:17]} 45. h4 {[%emt 0:00:46]} gxh4 {[%emt 0:02:49]} 46. gxh4 {[%emt 0:00:11]} f4 {[%emt 0:00:17]} 47. Kd4 {[%emt 0:00:08]} Kd6 {[%emt 0:00:17]} 48. Ke4 {[%emt 0:00:20]} Kc5 {[%emt 0:00:20]} 49. Kxf4 {[%emt 0:00:05]} Kb4 {[%emt 0:00:08]} 50. Kg5 {[%emt 0:00:15]} Kxa4 {[%emt 0:00:15]} 51. f4 {[%emt 0:00:10]} Kb5 {[%emt 0:01:03]} 52. f5 {[%emt 0:00:21]} a4 {[%emt 0:00:15]} 53. f6 {[%emt 0:00:10]} a3 {[%emt 0:00:12]} 54. f7 {[%emt 0:00:08]} a2 {[%emt 0:00:08]} 55. f8=Q {[%emt 0:00:06]} a1=Q {[%emt 0:00:07]} 56. Qb8+ {[%emt 0:00:49]} Kc6 {[%emt 0:00:16]} 57. Qe8+ {[%emt 0:00:38]} Kd5 {[%emt 0:00:38]} 58. Qf7+ {[%emt 0:00:23]} Kd6 {[%emt 0:03:44]} 59. Qf4+ {[%emt 0:01:39]} Qe5+ {[%emt 0:00:27]} 60. Qxe5+ {[%emt 0:01:52]} Kxe5 {[%emt 0:00:07]} 61. Kxh5 {[%emt 0:00:05]} Kf5 {[%emt 0:00:52]} 62. Kh6 {[%emt 0:00:33]} Kf6 {[%emt 0:00:42]} 63. Kh7 {[%emt 0:00:27]} Kf7 {[%emt 0:00:35]} 64. h5 {[%emt 0:00:11]} Kf8 {[%emt 0:00:17]} 65. Kg6 {[%emt 0:00:28]} Kg8 {[%emt 0:00:12]} 1/2-1/2